Cogmind - Beta 9.2 @@@ ROGUE MODE // 2019.11.21 @ 18:35:27 Player: Cassie Rose Result: Destroyed by G-47 Trooper with Particle Gun Performance ------------- Evolutions (0) 0 Regions Visited (1) 200 Robots Destroyed (17) 85 Value Destroyed (360) 360 Prototype IDs (0) 0 Alien Tech Used (0) 0 Bonus (0) 0 TOTAL SCORE: 645 Bonus ------- None Cogmind --------- Core Integrity 0/250 Matter 300/300 Energy 100/100 System Corruption 0% Temperature Cool (9) Movement Core (50) Location -10/Materials Parts ------- > --- POWER (1) -------- (None) > --- PROPULSION (2) --- (None) > --- UTILITY (2) ------ Structural Scanner > --- WEAPON (2) ------- Mining Claw > --- INVENTORY (4) ---- Heat Sink Datajack Peak State ------------ > --- POWER ------------ Ion Engine > --- PROPULSION ------- Wheel Wheel > --- UTILITY ---------- Improved Terrain Scanner Improved Terrain Scanner > --- WEAPON ----------- Medium Laser Medium Laser > --- INVENTORY -------- Ion Engine Grenade Launcher [Rating: 9] Favorites ----------- Power Ion Engine Engine Ion Engine Propulsion Hover Unit Wheel Wheel Hover Unit Hover Unit Utility Improved Terrain Scanner Device Improved Terrain Scanner Weapon Medium Laser Energy Gun Medium Laser Launcher Grenade Launcher Slashing Weapon Mining Claw Build | -11 -10 ------- Run | Scr Mat Slots Evolved . | . . Power . | . . Propulsion . | . . Utility . | . . Weapon . | . . Parts Attached 20 | 6 14 Power 2 | 1 1 Engine 2 | 1 1 Core . | . . Reactor . | . . Propulsion 8 | 2 6 Treads . | . . Leg . | . . Wheel 2 | 2 . Hover 6 | . 6 Flight . | . . Utility 4 | 1 3 Device 4 | 1 3 Storage . | . . Processor . | . . Hackware . | . . Protection . | . . Artifact . | . . Weapon 6 | 2 4 Energy Gun 3 | 2 1 Energy Cannon . | . . Ballistic Gun . | . . Ballistic Cannon . | . . Launcher 2 | . 2 Special Weapon . | . . Impact Weapon . | . . Slashing Weapon 1 | . 1 Piercing Weapon . | . . Special Melee Weapon . | . . Unidentified Prototypes . | . . Parts Lost 7 | . 7 Power 1 | . 1 Propulsion 3 | . 3 Utility 1 | . 1 Weapon 2 | . 2 Highest Loss Streak 3 | . 3 Average Slot Usage (%) 91 | . 91 Engine 14 | . 14 Wheel 3 | . 3 Hover 19 | . 19 Device 25 | . 25 Energy Gun 19 | . 19 Launcher 6 | . 6 Slashing Weapon 1 | . 1 Naked Turns . | . . Heaviest Build 12 | 10 12 Greatest Support 20 | 20 20 Greatest Overweight (x) 3 | . 3 Average Overweight (x) . | . . Largest Inventory Capacity 4 | 4 4 Average Capacity 4 | 4 4 Most Carried 4 | 2 4 Average Carried 2 | 1 3 Final Capacity 4 | 4 4 Final Carried 2 | 2 2 Class Distribution -------------------- 76% | Mutant 23% | Scavenger-Mutant Dominant Class ---------------- Mutant | -10/Materials Resources | -11 -10 ----------- Run | Scr Mat Matter Collected 430 | 260 170 Remotely . | . . Salvage Created 526 | 182 344 Parts 37 | 15 22 Haulers Intercepted 1 | . 1 Recyclers Shooed 2 | 1 1 Parts Field Recycled . | . . Retrieved Matter . | . . Parts Self-Destructed . | . . Prevented . | . . Kills | -11 -10 ------- Run | Scr Mat Combat Hostiles Destroyed 7 | . 7 Melee 1 | . 1 Guns 4 | . 4 AOE 2 | . 2 Classes Destroyed 7 | 2 5 Tunneler 4 | 4 . Hauler 1 | . 1 Recycler 1 | 1 . Operator 1 | . 1 Watcher 3 | . 3 Swarmer 1 | . 1 Grunt 6 | . 6 Best Kill Streak 4 | 4 2 Combat Bots Only 2 | . 2 Max Kills in Single Turn 1 | 1 1 Gunslinging . | . . Exploded 1 | . 1 Melee 1 | . 1 Uniques/NPCs Destroyed . | . . Combat | -11 -10 -------- Run | Scr Mat Damage Taken 719 | . 719 Core 264 | . 264 Absorbed by Shields . | . . Core Remaining (%) 100 | 100 . Volleys Fired 58 | 15 43 Largest 2 | 2 2 Hottest 100 | 100 100 Shots Fired 99 | 30 69 Gun 95 | 30 65 Cannon . | . . Launcher 4 | . 4 Special . | . . Kinetic . | . . Thermal 95 | 30 65 Explosive 4 | . 4 Electromagnetic . | . . Robot Hit Streak 13 | 5 13 Robot Miss Streak 5 | 3 5 Penetration Max . | . . Secondary Targets . | . . Shots Hit Robots 61 | 17 44 Core Hits 28 | 6 22 Critical Hits . | . . Critical Kills . | . . Critical Parts Destroyed . | . . Melee Attacks 5 | . 5 Impact . | . . Slashing 5 | . 5 Piercing . | . . Sneak Attacks 1 | . 1 Combat Hostiles . | . . Follow-up Attacks . | . . Damage Inflicted 1009 | 261 748 Guns 697 | 261 436 Cannons . | . . Explosions 161 | . 161 Melee 151 | . 151 Ramming . | . . Kinetic . | . . Thermal 697 | 261 436 Explosive 161 | . 161 Electromagnetic . | . . Impact . | . . Slashing 151 | . 151 Piercing . | . . Highest Corruption . | . . Average Corruption . | . . Corruption Purged . | . . Overload Shots . | . . Overflow Damage 65 | . 65 Projectiles . | . . Explosions 10 | . 10 Melee 55 | . 55 Knockbacks . | . . Impact . | . . Kinetic . | . . Secondary . | . . Self-Inflicted Damage 136 | . 136 Shots 4 | . 4 Rammed . | . . Targets Rammed . | . . Kicked . | . . Crushed . | . . Highest Temperature 508 | 291 508 Average Temperature 129 | 104 141 Received Heat Transfer 225 | . 225 Effects 10 | 2 8 Shutdowns 3 | . 3 Energy Bleed 1 | . 1 Interference 4 | 2 2 Matter Decay 1 | . 1 Short Circuit 1 | . 1 Siege Activations . | . . Robots Corrupted . | . . Combat Hostiles . | . . Parts Fried . | . . Impact Corruptions . | . . Robots Melted . | . . Combat Hostiles . | . . Parts Melted 4 | 1 3 Heat Transferred 2072 | 777 1295 Parts Sabotaged . | . . Parts Stolen . | . . Parts Stripped . | . . Power Chain Reactions . | . . Missiles Intercepted . | . . Alert | -11 -10 ------- Run | Scr Mat Peak Influence 107 | 25 107 Average Influence 52 | 10 57 Maximum Alert Level . | . . Low Security (%) 100 | 100 100 Level 1 . | . . Level 2 . | . . Level 3 . | . . Level 4 . | . . Level 5 . | . . High Security . | . . Max Security . | . . Squads Dispatched 1 | . 1 Investigation . | . . Extermination . | . . Reinforcement 1 | . 1 Assault . | . . Garrison . | . . Intercept . | . . Construction Impeded . | . . Haulers Reinforced . | . . Stealth | -11 -10 --------- Run | Scr Mat Distress Signals 4 | . 4 Communications Jammed . | . . Distress Signals . | . . Times Spotted 21 | . 21 Peak Tracking Total 5 | . 5 Tactical Retreats 1 | . 1 Traps | -11 -10 ------- Run | Scr Mat Traps Triggered 1 | . 1 Indirectly . | . . Trap Hack Attempts . | . . Triggered . | . . Disarmed . | . . Reprogrammed . | . . Reused . | . . Traps Extracted . | . . Installed . | . . Triggered . | . . Machines | -11 -10 ---------- Run | Scr Mat Machines Disabled 2 | . 2 Max in Single Turn 1 | . 1 Machines Sabotaged . | . . Garrisons Compromised . | . . Overloaded Fab Kills . | . . Fab Network Shutdowns . | . . Hacking | -11 -10 --------- Run | Scr Mat Machines Accessed 3 | . 3 Terminals 2 | . 2 Fabricators . | . . Repair Stations 1 | . 1 Recycling Units . | . . Scanalyzers . | . . Garrison Access . | . . Total Hacks 9 | . 9 Successful 5 | . 5 Failed 4 | . 4 Catastrophic . | . . Database Lockouts . | . . Manual 5 | . 5 Terminals 5 | . 5 Fabricators . | . . Repair Stations 4 | . 4 Recycling Units . | . . Scanalyzers . | . . Garrison Access . | . . Terminal Hacks . | . . Fabricator Hacks . | . . Repair Station Hacks 4 | . 4 Scan Component 2 | . 2 Repair 2 | . 2 Recycling Unit Hacks . | . . Scanalyzer . | . . Garrison Access Hacks . | . . Unauthorized Hacks 5 | . 5 Terminals 1 | . 1 Botnet 1 | . 1 Fabricators . | . . Repair Stations . | . . Recycling Units . | . . Scanalyzers . | . . Garrison Access . | . . Data Cores Recovered . | . . Used . | . . Hacking Detections 2 | . 2 Full Trace Events 1 | . 1 Feedback Events . | . . Feedback Blocked . | . . Robot Schematics Acquired . | . . Robots Built . | . . Matter . | . . Time . | . . Total Robot Build Rating . | . . Part Schematics Acquired . | . . Parts Built . | . . Matter . | . . Time . | . . Total Part Build Rating . | . . Parts Repaired 2 | . 2 Time 62 | . 62 Parts Recycled . | . . Recycled Matter . | . . Retrieved Matter . | . . Retrieved Components . | . . Parts Scanalyzed . | . . Part Schematics Acquired . | . . Parts Damaged . | . . Bothacking | -11 -10 ------------ Run | Scr Mat Used RIF Installer . | . . Robots Hacked . | . . Non-combat . | . . Combat . | . . Robot Hacks Applied . | . . Relay Couplers Released . | . . Robots Rewired . | . . Allies Hacked . | . . Hacks Repelled . | . . Allies | -11 -10 -------- Run | Scr Mat Total Allies . | . . Largest Group . | . . Highest-Rated Group . | . . Highest-Rated Ally . | . . Total Orders . | . . Ally Attacks . | . . Total Damage . | . . Kills . | . . Allies Corrupted . | . . Allies Melted . | . . Intel | -11 -10 ------- Run | Scr Mat Robot Analysis Total . | . . Derelict Logs Recovered . | . . Drone Launches . | . . Drone Recoveries . | . . Exploration | -11 -10 ------------- Run | Scr Mat Turns Passed 1106 | 133 973 Spaces Moved 734 | 70 664 Core 85 | 8 77 Treads . | . . Legs . | . . Wheels 177 | 62 115 Hover 472 | . 472 Flight . | . . Fastest Speed 50 | 50 56 Average Speed 94 | 76 96 Slowest Speed 200 | 80 200 Overloaded Moves . | . . Propulsion Burnouts . | . . Robots Hopped . | . . Cave-ins Triggered . | . . Exploration Rate (%) 38 | 5 72 Regions Visited 1 Branch Regions . Pre-discovered Areas . | . . Known Exits Taken . | . . Unknown Exits Taken 1 | 1 . Scrap Searched . | . . Spaces Dug . | . . Terrain Destroyed 20 | . 20 Melee . | . . Projectile . | . . AOE 20 | . 20 Actions | -11 -10 --------- Run | Scr Mat Total 1037 | 119 918 Wait 196 | 21 175 Move 733 | 69 664 Hop . | . . Pick Up 18 | 8 10 Fast Attach 4 | . 4 Attach 13 | 6 7 Detach . | . . Swap 3 | . 3 Drop 7 | . 7 Fire 58 | 15 43 Melee 5 | . 5 Ram . | . . Kick . | . . Crush . | . . Escape Stasis . | . . Rewire . | . . Trap . | . . Miscellaneous . | . . Route ------- -11/Scrapyard -10/Materials (discovered 3 exits: [*Mat x2] / [*Min]) History --------- Turn | Location | Event 10 | -11/Scrapyard | Discovered new exit (range 15) 134 | -11/Scrapyard | Entered Materials 199 | -10/Materials | Discovered new exit (range 7) 345 | -10/Materials | Discovered new exit (range 14) 676 | -10/Materials | Discovered new exit (range 4) 729 | -10/Materials | Repaired Hover Unit 757 | -10/Materials | Repaired Hover Unit 950 | -10/Materials | Build established: Mutant 1099 | -10/Materials | Core integrity fell below 50% 1105 | -10/Materials | Core integrity fell below 20% 1107 | -10/Materials | Destroyed by G-47 Trooper with Particle Gun Last Messages --------------- 01011_ Acquired 30 matter. 01011_ U-05 Engineer lays Concrete. 01015_ K-01 Serf collects debris. 01025_ Imp. Terrain Scanner destroyed. 01025_ Destroyed Imp. Terrain Scanner. 01025_ Atomic Centrifuge disabled. 01043_ Sneak attack on O-16 Technician. 01043_ Destroyed Hover Unit. 01043_ Destroyed Lgt. Ion Engine. 01043_ Destroyed Hover Unit. 01043_ Destroyed Datajack. 01043_ O-16 Technician destroyed. 01046_ Acquired 5 matter. 01082_ U-05 Engineer lays Concrete. 01090_ Hover Unit destroyed. 01097_ U-05 Engineer builds a Wall. 01099_ Grenade Launcher destroyed. 01099_ Destroyed Flight Unit. 01101_ Ion Engine destroyed. 01105_ S-10 Pest destroyed. Map ----- +----------------------------------------------------+ | | | | | | | | | | | | | | | | | | | | | | | | | ????????## ###################??#??????????????? | | ????????# "" # #??????#??????????? | | ?????#??# # """"" """ #?????????????????? | | ?##?????## # ""T"" """ #?????????????????? | | ????????# # """ #?????????????????? | | ?#??????# # #???#?????????????? | | #?#?????#####+# ##+############?????????????????? | | ?#?#?????# = ^ %##???##????????????????????? | | ?#?#??#??# ^ #??#???????????????????????? | | ?#??#?#??## ##%^ #??????#???????????????????? | | ??????????####=== ##################?????????? | | ##############= !k sg ???????? | | # # sg ???????? | | # "" # @u= ???????? | | # " ########+###### #### ##??????????? | | # "" #??# ## #??????????????????? | | # #### ## ##?#???????????????? | | # ! #?## ## #??#???????????????? | | # #### ## #??????????????????? | | # ## #??# ## #??????????????????? | | # "Y" ## #??# + #??????????????????? | | # """ ## #??# ###/####????????????????? | | # ## #??# # #? ??????????????? | | ########## #??########### ##???????????????? | | ?????????# #????#???????# """ #????????????????? | | ?????????# #?############= """ ##???????????????? | | ?????????# #?# # """ #????????????????? | | ?????????# #?# + #? ??????????????? | | ?????????# ### %%# = #?#??????????????? | | ????????## #?# ######+#########?? ???????????? | | ?????????# #?# # #?#???????? ??????????? | | ???????#?# #?# # #?????#???????????????? | | ?????????# ### # # ?????? ???????#????? | | ?????????# ^^ # #???? ????????????????? | | ?????#???# < / #? ? ?????????????????? | | ?????????# ^ # #?????????????????????? | | ?????????##### # #? ?""???????????????? | | ?????????#???# # # ???????????#????????? | +----------------------------------------------------+ Best States ------------- Heat Dissipation 25 Energy Generation 10 Energy Capacity 250 Matter Stores 300 Matter Capacity 300 Sight Range 16 Terrain Scan Range 16 Terrain Scan Density 10 Evasion (%) 53 Item Schematics ----------------- None Robot Schematics ------------------ None Fabricated ------------ Nothing Alien Tech Used ----------------- None Achievements -------------- None Challenges ------------ None Game ------ Seed GaussReflectiveScreen Manual? 0 Play Time 00:15:23 Cumulative 32.2 hours Start 2019.11.21 @ 18:21:17 End 2019.11.21 @ 18:35:27 Sessions 1 Manual Loads 0 Difficulty Rogue Special Mode None Game No. 44 Rogue 44 Adventurer 0 Explorer 0 Win Type - Total 0 Types 0/0/0/0/0/0/0 Lore% 21 Gallery% 18 Achievement% 19 Wizard Run 0 Options --------- ASCII 0 Keyboard 0 Movement Arrows Keybinds 0 Fullscreen 1 Font 18/X11 Map View 76x50 Tactical HUD 1 Map Filters NONE Filters LOW_CONTRAST(13,24,33) Steam 1 RUN: f607ad89-8033-4956-9839-c7a89259eae9